[Event "Titled Tuesday Blitz May 23 Early 2023"]
[White "Svane, Rasmus"]
[Black "Fridman, Daniel"]
[WhiteFideId "4657101"]
[BlackFideId "11600454"]
[WhiteElo "2601"]
[BlackElo "2525"]
[Result "1-0"]
[Round "08"]
[TimeControl "180+2"]
[Date "2023.05.23"]
[WhiteClock "0:00:38"]
[BlackClock "0:00:00"]

1. c4 {[%clk 0:03:00]}  e6 {[%clk 0:02:59]} 2. g3 {[%clk 0:03:01]}  d5 {[%clk 0:02:59]} 3. Bg2 {[%clk 0:03:01]}  Nf6 {[%clk 0:02:59]} 4. Nf3 {[%clk 0:02:50]}  Be7 {[%clk 0:03:00]} 5. O-O {[%clk 0:02:50]}  O-O {[%clk 0:03:00]} 6. b3 {[%clk 0:02:50]}  b6 {[%clk 0:02:59]} 7. d4 {[%clk 0:02:50]}  Bb7 {[%clk 0:02:58]} 8. Nc3 {[%clk 0:02:50]}  Nbd7 {[%clk 0:02:54]} 9. Bb2 {[%clk 0:02:50]}  c5 {[%clk 0:02:54]} 10. Ne1 {[%clk 0:02:51]}  cxd4 {[%clk 0:02:43]} 11. Qxd4 {[%clk 0:02:52]}  Nc5 {[%clk 0:02:35]} 12. cxd5 {[%clk 0:02:48]}  exd5 {[%clk 0:02:35]} 13. Rd1 {[%clk 0:02:48]}  Ne6 {[%clk 0:02:30]} 14. Qd2 {[%clk 0:02:46]}  Ne4 {[%clk 0:02:04]} 15. Nxe4 {[%clk 0:02:26]}  dxe4 {[%clk 0:02:05]} 16. Qc2 {[%clk 0:02:26]}  Qc8 {[%clk 0:01:57]} 17. Bxe4 {[%clk 0:02:27]}  Qxc2 {[%clk 0:01:55]} 18. Bxc2 {[%clk 0:02:27]}  Rfd8 {[%clk 0:01:44]} 19. Nf3 {[%clk 0:01:58]}  Bc5 {[%clk 0:01:29]} 20. Rxd8+ {[%clk 0:01:56]}  Rxd8 {[%clk 0:01:28]} 21. Rd1 {[%clk 0:01:57]}  Rxd1+ {[%clk 0:01:24]} 22. Bxd1 {[%clk 0:01:57]}  Bxf3 {[%clk 0:01:24]} 23. exf3 {[%clk 0:01:58]}  a5 {[%clk 0:01:22]} 24. f4 {[%clk 0:01:55]}  Bd4 {[%clk 0:01:14]} 25. Bc1 {[%clk 0:01:55]}  Nc5 {[%clk 0:01:13]} 26. Bc2 {[%clk 0:01:51]}  Na6 {[%clk 0:01:13]} 27. Kg2 {[%clk 0:01:47]}  Nb4 {[%clk 0:01:13]} 28. Bb1 {[%clk 0:01:48]}  Nd5 {[%clk 0:01:13]} 29. a4 {[%clk 0:01:44]}  h6 {[%clk 0:01:08]} 30. Kf3 {[%clk 0:01:43]}  Bc5 {[%clk 0:01:03]} 31. Bd3 {[%clk 0:01:38]}  Kf8 {[%clk 0:01:01]} 32. Bc4 {[%clk 0:01:38]}  Nf6 {[%clk 0:00:43]} 33. g4 {[%clk 0:01:34]}  Ke7 {[%clk 0:00:41]} 34. g5 {[%clk 0:01:32]}  Nd7 {[%clk 0:00:38]} 35. Bb2 {[%clk 0:01:31]}  hxg5 {[%clk 0:00:39]} 36. fxg5 {[%clk 0:01:31]}  f6 {[%clk 0:00:34]} 37. h4 {[%clk 0:01:03]}  Ne5+ {[%clk 0:00:33]} 38. Kg2 {[%clk 0:01:01]}  Ng6 {[%clk 0:00:30]} 39. gxf6+ {[%clk 0:00:53]}  gxf6 {[%clk 0:00:31]} 40. Kg3 {[%clk 0:00:53]}  Bd6+ {[%clk 0:00:30]} 41. Kg4 {[%clk 0:00:52]}  Bc5 {[%clk 0:00:26]} 42. f4 {[%clk 0:00:50]}  Bd6 {[%clk 0:00:20]} 43. Bc1 {[%clk 0:00:46]}  Kf8 {[%clk 0:00:17]} 44. h5 {[%clk 0:00:47]}  Ne7 {[%clk 0:00:17]} 45. h6 {[%clk 0:00:43]}  Bc5 {[%clk 0:00:11]} 46. Bb2 {[%clk 0:00:43]}  Ng8 {[%clk 0:00:00]} 47. h7 {[%clk 0:00:38]} 1-0


[Site "https://www.chess.com"]

[Event "Titled Tuesday Blitz May 23 Early 2023"]
[White "Narayanan, Srinath"]
[Black "Demchenko, Anton"]
[WhiteFideId "5018420"]
[BlackFideId "4160258"]
[WhiteElo "2438"]
[BlackElo "2545"]
[Result "0-1"]
[Round "08"]
[TimeControl "180+2"]
[Date "2023.05.23"]
[WhiteClock "0:00:08"]
[BlackClock "0:00:06"]

1. Nf3 {[%clk 0:03:00]}  Nf6 {[%clk 0:02:58]} 2. c4 {[%clk 0:02:59]}  d6 {[%clk 0:02:58]} 3. d4 {[%clk 0:02:59]}  Nc6 {[%clk 0:02:58]} 4. g3 {[%clk 0:02:58]}  e5 {[%clk 0:02:58]} 5. dxe5 {[%clk 0:02:57]}  dxe5 {[%clk 0:02:59]} 6. Qxd8+ {[%clk 0:02:58]}  Kxd8 {[%clk 0:02:59]} 7. Bg2 {[%clk 0:02:58]}  Be6 {[%clk 0:02:58]} 8. Ng5 {[%clk 0:02:46]}  Bxc4 {[%clk 0:02:53]} 9. Nd2 {[%clk 0:02:44]}  Be6 {[%clk 0:02:53]} 10. Nxe6+ {[%clk 0:02:43]}  fxe6 {[%clk 0:02:54]} 11. Bxc6 {[%clk 0:02:44]}  bxc6 {[%clk 0:02:54]} 12. Nc4 {[%clk 0:02:45]}  Bd6 {[%clk 0:02:50]} 13. b3 {[%clk 0:02:44]}  a5 {[%clk 0:02:41]} 14. Bb2 {[%clk 0:02:36]}  e4 {[%clk 0:02:33]} 15. O-O-O {[%clk 0:02:16]}  Ke7 {[%clk 0:02:33]} 16. Kc2 {[%clk 0:02:01]}  a4 {[%clk 0:02:31]} 17. f3 {[%clk 0:01:38]}  Rhb8 {[%clk 0:02:13]} 18. g4 {[%clk 0:01:27]}  Rb5 {[%clk 0:01:58]} 19. h4 {[%clk 0:01:24]}  axb3+ {[%clk 0:01:35]} 20. axb3 {[%clk 0:01:24]}  Rab8 {[%clk 0:01:36]} 21. g5 {[%clk 0:01:23]}  Nh5 {[%clk 0:01:28]} 22. fxe4 {[%clk 0:01:18]}  Rxb3 {[%clk 0:01:24]} 23. Bc3 {[%clk 0:01:04]}  Ng3 {[%clk 0:01:14]} 24. Rh3 {[%clk 0:01:03]}  Rxc3+ {[%clk 0:01:10]} 25. Kxc3 {[%clk 0:00:52]}  Nxe4+ {[%clk 0:01:10]} 26. Kc2 {[%clk 0:00:51]}  Nf2 {[%clk 0:01:10]} 27. Rxd6 {[%clk 0:00:26]}  cxd6 {[%clk 0:01:01]} 28. Ra3 {[%clk 0:00:27]}  Rb7 {[%clk 0:00:57]} 29. Ra6 {[%clk 0:00:27]}  Rc7 {[%clk 0:00:53]} 30. Nb6 {[%clk 0:00:24]}  Ne4 {[%clk 0:00:38]} 31. Na8 {[%clk 0:00:24]}  Rb7 {[%clk 0:00:34]} 32. Rxc6 {[%clk 0:00:22]}  Kd7 {[%clk 0:00:33]} 33. Rb6 {[%clk 0:00:17]}  Rxb6 {[%clk 0:00:31]} 34. Nxb6+ {[%clk 0:00:18]}  Kc6 {[%clk 0:00:31]} 35. Nc8 {[%clk 0:00:18]}  Kc7 {[%clk 0:00:30]} 36. Na7 {[%clk 0:00:17]}  g6 {[%clk 0:00:21]} 37. Kd3 {[%clk 0:00:15]}  Ng3 {[%clk 0:00:17]} 38. e4 {[%clk 0:00:14]}  Nh5 {[%clk 0:00:12]} 39. Nb5+ {[%clk 0:00:14]}  Kd7 {[%clk 0:00:12]} 40. Ke3 {[%clk 0:00:13]}  e5 {[%clk 0:00:12]} 41. Nc3 {[%clk 0:00:13]}  Nf4 {[%clk 0:00:12]} 42. Kf3 {[%clk 0:00:11]}  Ke6 {[%clk 0:00:13]} 43. Nb5 {[%clk 0:00:11]}  d5 {[%clk 0:00:11]} 44. Nc7+ {[%clk 0:00:12]}  Kd6 {[%clk 0:00:10]} 45. Ne8+ {[%clk 0:00:12]}  Kc5 {[%clk 0:00:09]} 46. Nf6 {[%clk 0:00:09]}  d4 {[%clk 0:00:09]} 47. Nxh7 {[%clk 0:00:09]}  Kc4 {[%clk 0:00:07]} 48. Nf6 {[%clk 0:00:09]}  Kc3 {[%clk 0:00:06]} 49. h5 {[%clk 0:00:06]}  d3 {[%clk 0:00:05]} 50. Ng4 {[%clk 0:00:04]}  gxh5 {[%clk 0:00:03]} 51. Nf2 {[%clk 0:00:03]}  d2 {[%clk 0:00:03]} 52. Kg3 {[%clk 0:00:02]}  Kc2 {[%clk 0:00:03]} 53. Kh4 {[%clk 0:00:02]}  d1=Q {[%clk 0:00:03]} 54. Nxd1 {[%clk 0:00:03]}  Kxd1 {[%clk 0:00:04]} 55. g6 {[%clk 0:00:04]}  Nxg6+ {[%clk 0:00:04]} 56. Kxh5 {[%clk 0:00:05]}  Ne7 {[%clk 0:00:04]} 57. Kg5 {[%clk 0:00:06]}  Ke2 {[%clk 0:00:05]} 58. Kf6 {[%clk 0:00:07]}  Nc6 {[%clk 0:00:05]} 59. Ke6 {[%clk 0:00:08]}  Kd3 {[%clk 0:00:05]} 60. Kd5 {[%clk 0:00:09]}  Ke3 {[%clk 0:00:05]} 61. Kxc6 {[%clk 0:00:09]}  Kxe4 {[%clk 0:00:06]} 62. Kc5 {[%clk 0:00:08]}  Kd3 {[%clk 0:00:06]} 0-1


[Site "https://www.chess.com"]

[Event "Titled Tuesday Blitz May 23 Early 2023"]
[White "Karthik Venkataraman"]
[Black "demon64fields"]
[WhiteFideId "25006479"]
[WhiteElo "2419"]
[BlackElo "2876"]
[Result "1-0"]
[Round "08"]
[TimeControl "180+2"]
[Date "2023.05.23"]
[WhiteClock "0:00:22"]
[BlackClock "0:00:04"]

1. a4 {[%clk 0:02:57]}  d5 {[%clk 0:02:57]} 2. Nf3 {[%clk 0:02:57]}  Nf6 {[%clk 0:02:55]} 3. d3 {[%clk 0:02:56]}  Nc6 {[%clk 0:02:54]} 4. g3 {[%clk 0:02:55]}  e5 {[%clk 0:02:54]} 5. Bg2 {[%clk 0:02:55]}  Bg4 {[%clk 0:02:55]} 6. h3 {[%clk 0:02:53]}  Be6 {[%clk 0:02:54]} 7. c3 {[%clk 0:02:53]}  a5 {[%clk 0:02:53]} 8. Nbd2 {[%clk 0:02:48]}  h6 {[%clk 0:02:52]} 9. e4 {[%clk 0:02:47]}  Qd7 {[%clk 0:02:47]} 10. exd5 {[%clk 0:02:40]}  Nxd5 {[%clk 0:02:48]} 11. Nc4 {[%clk 0:02:40]}  f6 {[%clk 0:02:44]} 12. Nh4 {[%clk 0:02:39]}  Bc5 {[%clk 0:02:30]} 13. Qh5+ {[%clk 0:02:32]}  Qf7 {[%clk 0:02:25]} 14. Qe2 {[%clk 0:02:06]}  g5 {[%clk 0:02:18]} 15. Nf3 {[%clk 0:02:00]}  O-O-O {[%clk 0:02:17]} 16. Nfd2 {[%clk 0:01:50]}  Ba7 {[%clk 0:02:06]} 17. Nb3 {[%clk 0:01:46]}  f5 {[%clk 0:01:51]} 18. Nbxa5 {[%clk 0:01:44]}  Nxa5 {[%clk 0:01:50]} 19. Nxa5 {[%clk 0:01:44]}  e4 {[%clk 0:01:45]} 20. dxe4 {[%clk 0:01:35]}  fxe4 {[%clk 0:01:46]} 21. O-O {[%clk 0:01:34]}  Rhe8 {[%clk 0:01:42]} 22. Be3 {[%clk 0:01:19]}  Nxe3 {[%clk 0:01:32]} 23. fxe3 {[%clk 0:01:20]}  Qe7 {[%clk 0:01:31]} 24. b4 {[%clk 0:01:14]}  Kb8 {[%clk 0:00:47]} 25. Kh2 {[%clk 0:01:07]}  h5 {[%clk 0:00:38]} 26. Rad1 {[%clk 0:00:59]}  h4 {[%clk 0:00:37]} 27. g4 {[%clk 0:00:50]}  Bc8 {[%clk 0:00:36]} 28. Qb5 {[%clk 0:00:47]}  Bb6 {[%clk 0:00:33]} 29. Kh1 {[%clk 0:00:25]}  Rd3 {[%clk 0:00:27]} 30. Rxd3 {[%clk 0:00:23]}  exd3 {[%clk 0:00:28]} 31. Nc6+ {[%clk 0:00:20]}  bxc6 {[%clk 0:00:09]} 32. Qxc6 {[%clk 0:00:21]}  Qe4 {[%clk 0:00:06]} 33. Bxe4 {[%clk 0:00:18]}  Rxe4 {[%clk 0:00:07]} 34. Qxe4 {[%clk 0:00:18]}  Bb7 {[%clk 0:00:07]} 35. Qxb7+ {[%clk 0:00:19]}  Kxb7 {[%clk 0:00:07]} 36. Rd1 {[%clk 0:00:19]}  Bxe3 {[%clk 0:00:05]} 37. Rxd3 {[%clk 0:00:20]}  Bf4 {[%clk 0:00:05]} 38. Kg2 {[%clk 0:00:20]}  c5 {[%clk 0:00:06]} 39. Kf3 {[%clk 0:00:21]}  c4 {[%clk 0:00:04]} 40. Rd4 {[%clk 0:00:22]} 1-0


[Site "https://www.chess.com"]

[Event "Titled Tuesday Blitz May 23 Early 2023"]
[White "Bacrot, Etienne"]
[Black "Vitiugov, Nikita"]
[WhiteFideId "605506"]
[BlackFideId "4152956"]
[WhiteElo "2672"]
[BlackElo "2673"]
[Result "1-0"]
[Round "08"]
[TimeControl "180+2"]
[Date "2023.05.23"]
[WhiteClock "0:00:28"]
[BlackClock "0:00:00"]

1. e4 {[%clk 0:02:58]}  e5 {[%clk 0:02:57]} 2. Nf3 {[%clk 0:02:58]}  Nc6 {[%clk 0:02:57]} 3. Bb5 {[%clk 0:02:58]}  a6 {[%clk 0:02:57]} 4. Ba4 {[%clk 0:02:58]}  Nf6 {[%clk 0:02:56]} 5. O-O {[%clk 0:02:58]}  Be7 {[%clk 0:02:57]} 6. Re1 {[%clk 0:02:58]}  b5 {[%clk 0:02:56]} 7. Bb3 {[%clk 0:02:58]}  O-O {[%clk 0:02:56]} 8. Nc3 {[%clk 0:02:58]}  d6 {[%clk 0:02:52]} 9. a4 {[%clk 0:02:57]}  b4 {[%clk 0:02:47]} 10. Nd5 {[%clk 0:02:56]}  Na5 {[%clk 0:02:43]} 11. Ba2 {[%clk 0:02:51]}  Nxd5 {[%clk 0:02:38]} 12. Bxd5 {[%clk 0:02:49]}  c6 {[%clk 0:02:37]} 13. Ba2 {[%clk 0:02:50]}  c5 {[%clk 0:02:37]} 14. c3 {[%clk 0:02:47]}  Rb8 {[%clk 0:02:33]} 15. Bd5 {[%clk 0:02:37]}  Be6 {[%clk 0:02:30]} 16. Bxe6 {[%clk 0:02:32]}  fxe6 {[%clk 0:02:31]} 17. d3 {[%clk 0:02:30]}  Qe8 {[%clk 0:02:19]} 18. Be3 {[%clk 0:02:27]}  Qc6 {[%clk 0:02:09]} 19. Qc2 {[%clk 0:02:22]}  bxc3 {[%clk 0:02:06]} 20. bxc3 {[%clk 0:02:20]}  Rb7 {[%clk 0:01:53]} 21. Qa2 {[%clk 0:02:14]}  c4 {[%clk 0:01:49]} 22. d4 {[%clk 0:02:10]}  Qxe4 {[%clk 0:01:46]} 23. dxe5 {[%clk 0:02:11]}  Nb3 {[%clk 0:01:17]} 24. Bg5 {[%clk 0:01:49]}  Qc6 {[%clk 0:01:11]} 25. Bxe7 {[%clk 0:01:46]}  Rxe7 {[%clk 0:01:11]} 26. exd6 {[%clk 0:01:46]}  Qxd6 {[%clk 0:01:09]} 27. Rad1 {[%clk 0:01:46]}  Qc6 {[%clk 0:01:06]} 28. Ne5 {[%clk 0:01:45]}  Qc7 {[%clk 0:00:51]} 29. Qe2 {[%clk 0:01:35]}  Rc8 {[%clk 0:00:43]} 30. h4 {[%clk 0:01:14]}  Qc5 {[%clk 0:00:41]} 31. Nxc4 {[%clk 0:01:02]}  Qxc4 {[%clk 0:00:16]} 32. Rd8+ {[%clk 0:01:01]}  Kf7 {[%clk 0:00:17]} 33. Qh5+ {[%clk 0:01:00]}  Kf6 {[%clk 0:00:17]} 34. Re3 {[%clk 0:00:30]}  g6 {[%clk 0:00:00]} 35. Qf3+ {[%clk 0:00:28]} 1-0


[Site "https://www.chess.com"]

[Event "Titled Tuesday Blitz May 23 Early 2023"]
[White "Martinez Alcantara, Jose Eduardo"]
[Black "Gorovets, Andrey"]
[WhiteFideId "3805662"]
[BlackFideId "13504037"]
[WhiteElo "2711"]
[BlackElo "2459"]
[Result "1-0"]
[Round "08"]
[TimeControl "180+2"]
[Date "2023.05.23"]
[WhiteClock "0:00:07"]
[BlackClock "0:00:00"]

1. e4 {[%clk 0:03:00]}  e6 {[%clk 0:02:58]} 2. d4 {[%clk 0:03:00]}  d5 {[%clk 0:02:56]} 3. Nd2 {[%clk 0:03:01]}  a6 {[%clk 0:02:55]} 4. c3 {[%clk 0:03:01]}  e5 {[%clk 0:02:41]} 5. dxe5 {[%clk 0:02:57]}  dxe4 {[%clk 0:02:40]} 6. Nxe4 {[%clk 0:02:50]}  Qxd1+ {[%clk 0:02:40]} 7. Kxd1 {[%clk 0:02:50]}  Nc6 {[%clk 0:02:40]} 8. f4 {[%clk 0:02:40]}  Bf5 {[%clk 0:02:32]} 9. Ng3 {[%clk 0:02:41]}  O-O-O+ {[%clk 0:02:32]} 10. Ke1 {[%clk 0:02:41]}  Bc2 {[%clk 0:02:25]} 11. Bd2 {[%clk 0:02:33]}  f6 {[%clk 0:02:21]} 12. Nf3 {[%clk 0:02:32]}  fxe5 {[%clk 0:02:17]} 13. fxe5 {[%clk 0:02:32]}  Bc5 {[%clk 0:02:13]} 14. Rc1 {[%clk 0:02:00]}  Bg6 {[%clk 0:02:12]} 15. Bc4 {[%clk 0:01:31]}  Nge7 {[%clk 0:02:12]} 16. Rd1 {[%clk 0:01:24]}  Bc2 {[%clk 0:02:07]} 17. Rc1 {[%clk 0:01:23]}  Bg6 {[%clk 0:02:07]} 18. Bg5 {[%clk 0:01:23]}  b5 {[%clk 0:01:59]} 19. Bb3 {[%clk 0:01:20]}  Rhe8 {[%clk 0:01:41]} 20. Rd1 {[%clk 0:01:16]}  Bd3 {[%clk 0:01:26]} 21. Rd2 {[%clk 0:00:54]}  h6 {[%clk 0:01:23]} 22. Bc2 {[%clk 0:00:35]}  Bxc2 {[%clk 0:01:17]} 23. Bxe7 {[%clk 0:00:35]}  Rxe7 {[%clk 0:01:09]} 24. Rxc2 {[%clk 0:00:33]}  Nxe5 {[%clk 0:01:08]} 25. Nxe5 {[%clk 0:00:34]}  Rxe5+ {[%clk 0:01:06]} 26. Re2 {[%clk 0:00:35]}  Rde8 {[%clk 0:01:04]} 27. Rxe5 {[%clk 0:00:34]}  Rxe5+ {[%clk 0:01:04]} 28. Kd2 {[%clk 0:00:35]}  Bd6 {[%clk 0:01:01]} 29. Rf1 {[%clk 0:00:28]}  Rg5 {[%clk 0:01:00]} 30. Rf3 {[%clk 0:00:25]}  h5 {[%clk 0:01:00]} 31. Ne2 {[%clk 0:00:11]}  Rxg2 {[%clk 0:00:56]} 32. h3 {[%clk 0:00:12]}  g5 {[%clk 0:00:54]} 33. Kd3 {[%clk 0:00:13]}  Kb7 {[%clk 0:00:49]} 34. b4 {[%clk 0:00:13]}  Rh2 {[%clk 0:00:38]} 35. a3 {[%clk 0:00:12]}  Kb6 {[%clk 0:00:33]} 36. Nd4 {[%clk 0:00:12]}  Be5 {[%clk 0:00:23]} 37. Ne2 {[%clk 0:00:10]}  c6 {[%clk 0:00:22]} 38. Ke3 {[%clk 0:00:10]}  a5 {[%clk 0:00:22]} 39. Kd3 {[%clk 0:00:10]}  a4 {[%clk 0:00:22]} 40. Re3 {[%clk 0:00:10]}  Bd6 {[%clk 0:00:21]} 41. Rf3 {[%clk 0:00:11]}  Rh1 {[%clk 0:00:16]} 42. Rf6 {[%clk 0:00:11]}  Rxh3+ {[%clk 0:00:15]} 43. Ke4 {[%clk 0:00:11]}  Kc7 {[%clk 0:00:15]} 44. Nd4 {[%clk 0:00:11]}  g4 {[%clk 0:00:11]} 45. Rf7+ {[%clk 0:00:12]}  Kb6 {[%clk 0:00:11]} 46. Rf6 {[%clk 0:00:13]}  Kc7 {[%clk 0:00:11]} 47. Rf7+ {[%clk 0:00:13]}  Kd8 {[%clk 0:00:12]} 48. Rf6 {[%clk 0:00:10]}  Kd7 {[%clk 0:00:10]} 49. Rf7+ {[%clk 0:00:10]}  Ke8 {[%clk 0:00:10]} 50. Rg7 {[%clk 0:00:10]}  Rxc3 {[%clk 0:00:09]} 51. Kf5 {[%clk 0:00:11]}  Bf8 {[%clk 0:00:07]} 52. Rg5 {[%clk 0:00:09]}  g3 {[%clk 0:00:07]} 53. Rxh5 {[%clk 0:00:07]}  Bg7 {[%clk 0:00:05]} 54. Ne6 {[%clk 0:00:07]}  Kf7 {[%clk 0:00:03]} 55. Ng5+ {[%clk 0:00:06]}  Kg8 {[%clk 0:00:03]} 56. Ne4 {[%clk 0:00:07]}  g2 {[%clk 0:00:03]} 57. Rg5 {[%clk 0:00:07]}  Rc2 {[%clk 0:00:04]} 58. Ke6 {[%clk 0:00:07]}  Kh7 {[%clk 0:00:03]} 59. Rg3 {[%clk 0:00:07]}  Bh6 {[%clk 0:00:00]} 60. Nf6+ {[%clk 0:00:07]} 1-0


[Site "https://www.chess.com"]

[Event "Titled Tuesday Blitz May 23 Early 2023"]
[White "Drygalov, Andrey"]
[Black "Schmakel, Sam"]
[WhiteFideId "24171735"]
[BlackFideId "2039311"]
[WhiteElo "2466"]
[BlackElo "2356"]
[Result "1-0"]
[Round "08"]
[TimeControl "180+2"]
[Date "2023.05.23"]
[WhiteClock "0:00:40"]
[BlackClock "0:00:00"]

1. e4 {[%clk 0:03:00]}  g6 {[%clk 0:02:59]} 2. d4 {[%clk 0:03:00]}  Bg7 {[%clk 0:03:00]} 3. Nc3 {[%clk 0:03:01]}  d6 {[%clk 0:03:01]} 4. f4 {[%clk 0:03:01]}  Nf6 {[%clk 0:02:59]} 5. Nf3 {[%clk 0:03:01]}  c5 {[%clk 0:02:58]} 6. Bb5+ {[%clk 0:02:57]}  Bd7 {[%clk 0:02:59]} 7. e5 {[%clk 0:02:57]}  Ng4 {[%clk 0:02:40]} 8. e6 {[%clk 0:02:55]}  fxe6 {[%clk 0:02:33]} 9. Ng5 {[%clk 0:02:55]}  Bxb5 {[%clk 0:01:17]} 10. Nxe6 {[%clk 0:02:53]}  Qa5 {[%clk 0:01:17]} 11. Nxg7+ {[%clk 0:02:42]}  Kf7 {[%clk 0:01:18]} 12. Qxg4 {[%clk 0:02:42]}  Kxg7 {[%clk 0:01:06]} 13. dxc5 {[%clk 0:02:42]}  Bd7 {[%clk 0:00:52]} 14. Qe2 {[%clk 0:02:41]}  Nc6 {[%clk 0:00:50]} 15. cxd6 {[%clk 0:02:27]}  exd6 {[%clk 0:00:50]} 16. O-O {[%clk 0:02:27]}  Rhe8 {[%clk 0:00:45]} 17. Be3 {[%clk 0:02:24]}  Bf5 {[%clk 0:00:37]} 18. Qd2 {[%clk 0:02:24]}  d5 {[%clk 0:00:29]} 19. Nxd5 {[%clk 0:02:16]}  Qxd2 {[%clk 0:00:30]} 20. Bxd2 {[%clk 0:02:17]}  Re2 {[%clk 0:00:30]} 21. Bc3+ {[%clk 0:02:16]}  Kf7 {[%clk 0:00:30]} 22. Rf2 {[%clk 0:02:15]}  Rxc2 {[%clk 0:00:26]} 23. Rxc2 {[%clk 0:02:12]}  Bxc2 {[%clk 0:00:27]} 24. Ne3 {[%clk 0:02:11]}  Be4 {[%clk 0:00:27]} 25. Nc4 {[%clk 0:02:09]}  Rd8 {[%clk 0:00:26]} 26. Ne3 {[%clk 0:02:04]}  b5 {[%clk 0:00:23]} 27. a3 {[%clk 0:02:02]}  a5 {[%clk 0:00:22]} 28. Rc1 {[%clk 0:02:02]}  b4 {[%clk 0:00:20]} 29. axb4 {[%clk 0:02:02]}  axb4 {[%clk 0:00:21]} 30. Be1 {[%clk 0:02:03]}  Rd3 {[%clk 0:00:19]} 31. Nc4 {[%clk 0:01:57]}  Ke6 {[%clk 0:00:18]} 32. Kf2 {[%clk 0:01:49]}  Rb3 {[%clk 0:00:17]} 33. Kg1 {[%clk 0:01:42]}  Bd5 {[%clk 0:00:16]} 34. Bf2 {[%clk 0:01:33]}  h5 {[%clk 0:00:07]} 35. g3 {[%clk 0:01:21]}  Bxc4 {[%clk 0:00:07]} 36. Rxc4 {[%clk 0:01:20]}  Kd5 {[%clk 0:00:08]} 37. Rc5+ {[%clk 0:01:21]}  Kd6 {[%clk 0:00:08]} 38. Rc2 {[%clk 0:01:21]}  Kd5 {[%clk 0:00:06]} 39. Kg2 {[%clk 0:01:20]}  Ne7 {[%clk 0:00:05]} 40. Rd2+ {[%clk 0:01:18]}  Ke6 {[%clk 0:00:05]} 41. h3 {[%clk 0:01:15]}  Nd5 {[%clk 0:00:04]} 42. Bd4 {[%clk 0:01:12]}  Ne7 {[%clk 0:00:03]} 43. Re2+ {[%clk 0:01:11]}  Kf7 {[%clk 0:00:03]} 44. Re3 {[%clk 0:01:05]}  Rxe3 {[%clk 0:00:02]} 45. Bxe3 {[%clk 0:01:06]}  b3 {[%clk 0:00:01]} 46. Kf3 {[%clk 0:01:05]}  Ke6 {[%clk 0:00:02]} 47. Ke4 {[%clk 0:01:05]}  Nf5 {[%clk 0:00:02]} 48. Bf2 {[%clk 0:01:04]}  Nd6+ {[%clk 0:00:01]} 49. Kd4 {[%clk 0:01:04]}  Kf5 {[%clk 0:00:02]} 50. Be3 {[%clk 0:00:57]}  Nf7 {[%clk 0:00:01]} 51. Bd2 {[%clk 0:00:53]}  Nd8 {[%clk 0:00:02]} 52. Kc3 {[%clk 0:00:53]}  Ne6 {[%clk 0:00:02]} 53. Kxb3 {[%clk 0:00:53]}  Nd4+ {[%clk 0:00:02]} 54. Kc4 {[%clk 0:00:52]}  Ne2 {[%clk 0:00:03]} 55. Be1 {[%clk 0:00:52]}  Ng1 {[%clk 0:00:01]} 56. h4 {[%clk 0:00:52]}  Nf3 {[%clk 0:00:01]} 57. Bf2 {[%clk 0:00:52]}  Ke4 {[%clk 0:00:01]} 58. b4 {[%clk 0:00:51]}  Nd2+ {[%clk 0:00:02]} 59. Kc3 {[%clk 0:00:51]}  Nb1+ {[%clk 0:00:02]} 60. Kc2 {[%clk 0:00:43]}  Na3+ {[%clk 0:00:03]} 61. Kb3 {[%clk 0:00:43]}  Nb5 {[%clk 0:00:03]} 62. Kc4 {[%clk 0:00:40]}  Na3+ {[%clk 0:00:03]} 63. Kc5 {[%clk 0:00:40]}  Kf3 {[%clk 0:00:04]} 64. Be1 {[%clk 0:00:40]}  Ke2 {[%clk 0:00:04]} 65. Bc3 {[%clk 0:00:39]}  Kf3 {[%clk 0:00:04]} 66. Bb2 {[%clk 0:00:39]}  Nc2 {[%clk 0:00:02]} 67. b5 {[%clk 0:00:40]}  Ne1 {[%clk 0:00:01]} 68. Kc4 {[%clk 0:00:40]}  Kxg3 {[%clk 0:00:00]} 69. b6 {[%clk 0:00:40]} 1-0


[Site "https://www.chess.com"]

[Event "Titled Tuesday Blitz May 23 Early 2023"]
[White "Nazari, Arad"]
[Black "Timofeev, Artyom"]
[WhiteFideId "12577324"]
[BlackFideId "4140419"]
[WhiteElo "2175"]
[BlackElo "2586"]
[Result "0-1"]
[Round "08"]
[TimeControl "180+2"]
[Date "2023.05.23"]
[WhiteClock "0:00:03"]
[BlackClock "0:00:12"]

1. e4 {[%clk 0:03:00]}  e5 {[%clk 0:02:59]} 2. f4 {[%clk 0:03:00]}  d5 {[%clk 0:02:58]} 3. exd5 {[%clk 0:03:00]}  e4 {[%clk 0:02:58]} 4. d3 {[%clk 0:03:01]}  Nf6 {[%clk 0:02:57]} 5. dxe4 {[%clk 0:02:42]}  Nxe4 {[%clk 0:02:57]} 6. Nf3 {[%clk 0:02:43]}  Bc5 {[%clk 0:02:54]} 7. Qe2 {[%clk 0:02:43]}  Qe7 {[%clk 0:02:53]} 8. Be3 {[%clk 0:02:39]}  Nd7 {[%clk 0:02:36]} 9. Nbd2 {[%clk 0:02:21]}  Nxd2 {[%clk 0:02:30]} 10. Bxd2 {[%clk 0:02:13]}  Nf6 {[%clk 0:02:29]} 11. Qxe7+ {[%clk 0:02:09]}  Kxe7 {[%clk 0:02:29]} 12. Bc4 {[%clk 0:01:58]}  Rd8 {[%clk 0:02:25]} 13. O-O-O {[%clk 0:01:54]}  Nxd5 {[%clk 0:02:11]} 14. Rhe1+ {[%clk 0:01:54]}  Kf8 {[%clk 0:02:11]} 15. Ng5 {[%clk 0:01:38]}  h6 {[%clk 0:02:05]} 16. Ne4 {[%clk 0:01:07]}  Be7 {[%clk 0:02:04]} 17. h3 {[%clk 0:01:00]}  c6 {[%clk 0:02:03]} 18. a4 {[%clk 0:00:52]}  Be6 {[%clk 0:02:02]} 19. Bb3 {[%clk 0:00:44]}  Re8 {[%clk 0:01:26]} 20. g4 {[%clk 0:00:41]}  f5 {[%clk 0:01:20]} 21. Nc3 {[%clk 0:00:28]}  Nxc3 {[%clk 0:01:13]} 22. bxc3 {[%clk 0:00:15]}  Bd7 {[%clk 0:00:58]} 23. g5 {[%clk 0:00:13]}  Rad8 {[%clk 0:00:54]} 24. Kb2 {[%clk 0:00:12]}  c5 {[%clk 0:00:48]} 25. h4 {[%clk 0:00:11]}  Bc6 {[%clk 0:00:36]} 26. gxh6 {[%clk 0:00:11]}  gxh6 {[%clk 0:00:36]} 27. Bc1 {[%clk 0:00:07]}  Rxd1 {[%clk 0:00:33]} 28. Rxd1 {[%clk 0:00:08]}  Bxh4 {[%clk 0:00:30]} 29. Rg1 {[%clk 0:00:09]}  h5 {[%clk 0:00:19]} 30. Rg6 {[%clk 0:00:04]}  Bd8 {[%clk 0:00:15]} 31. Rh6 {[%clk 0:00:04]}  h4 {[%clk 0:00:15]} 32. Rh8+ {[%clk 0:00:04]}  Kg7 {[%clk 0:00:14]} 33. Rxe8 {[%clk 0:00:01]}  Bxe8 {[%clk 0:00:14]} 34. Be3 {[%clk 0:00:02]}  h3 {[%clk 0:00:12]} 35. Bd5 {[%clk 0:00:02]}  Bc6 {[%clk 0:00:12]} 36. Bxc6 {[%clk 0:00:02]}  bxc6 {[%clk 0:00:12]} 37. Bg1 {[%clk 0:00:03]}  c4 {[%clk 0:00:12]} 38. Kc1 {[%clk 0:00:02]}  Bb6 {[%clk 0:00:12]} 39. Bh2 {[%clk 0:00:02]}  Kg6 {[%clk 0:00:12]} 40. Kd1 {[%clk 0:00:03]}  Kh5 {[%clk 0:00:12]} 0-1


[Site "https://www.chess.com"]